bitfinex/quotes_SOLUSD_20230111
["timestamp","ask_amount","ask_price","bid_price","bid_amount"]
[1673477943816,20.0,16.208,16.191,46.34]
[1673477943817,20.0,16.201,16.191,46.34]
[1673477944028,20.0,16.201,16.191,63.34]
[1673477944351,46.29,16.206,16.191,63.34]
[1673477944561,20.0,16.201,16.191,63.34]
[1673477944767,46.29,16.206,16.191,63.34]
[1673477944977,20.0,16.205,16.191,63.34]
[1673477945711,20.0,16.203,16.19,129.9]
[1673477946031,20.0,16.203,16.19,25.91]
[1673477946223,1.92,16.202,16.19,25.91]
[1673477946975,1.92,16.202,16.191,46.34]
[1673477947688,20.0,16.203,16.191,46.34]
[1673477947898,20.0,16.204,16.191,46.34]
[1673477948110,20.0,16.204,16.192,17.0]
[1673477948326,20.0,16.203,16.192,17.0]
[1673477948769,20.0,16.203,16.193,46.33]
[1673477948969,20.0,16.203,16.194,17.0]
[1673477949196,20.0,16.203,16.192,17.0]
[1673477950528,1270.0,16.204,16.192,17.0]
[1673477950740,20.0,16.203,16.192,17.0]
[1673477951388,20.0,16.203,16.193,46.33]
[1673477951577,20.0,16.203,16.191,46.34]
[1673477952859,20.0,16.203,16.192,17.0]
[1673477954212,46.29,16.206,16.192,17.0]
[1673477954435,51.4013,16.227,16.2,25.83]
[1673477954436,46.28,16.209,16.2,25.83]
[1673477954636,46.26,16.216,16.2,25.83]
[1673477954854,20.0,16.215,16.2,25.83]
[1673477955064,46.27,16.214,16.2,17.19]
[1673477955276,20.0,16.213,16.2,17.19]
[1673477955483,46.28,16.212,16.2,17.19]
[1673477956749,46.28,16.212,16.202,20.0]
[1673477957073,46.27,16.214,16.202,20.0]
[1673477957385,46.27,16.215,16.2,86.68]
[1673477957576,46.27,16.215,16.201,17.0]
[1673477958112,20.0,16.214,16.201,17.0]
[1673477958322,46.27,16.213,16.201,17.0]
[1673477959261,20.0,16.214,16.202,20.0]
[1673477959486,20.0,16.214,16.203,17.0]
[1673477959487,1270.0,16.214,16.203,17.0]
[1673477959675,20.0,16.213,16.203,17.0]
[1673477959885,20.0,16.213,16.2,86.68]
[1673477960096,46.28,16.212,16.201,63.31]
[1673477960322,66.27,16.213,16.201,17.0]
[1673477960538,66.27,16.213,16.201,36.14496728]
[1673477960960,20.0,16.212,16.2,86.68]
[1673477962415,46.28,16.211,16.201,17.0]
[1673477962628,66.28,16.212,16.201,17.0]
[1673477963598,65.28,16.212,16.201,17.0]
[1673477965689,65.28,16.212,16.2,86.68]
[1673477966416,1.92,16.211,16.2,86.68]
[1673477968621,46.28,16.21,16.202,20.0]
[1673477968830,1270.0,16.214,16.203,17.0]
[1673477969247,1270.0,16.214,16.203,36.14496728]
[1673477970623,20.0,16.213,16.203,36.14496728]
[1673477971050,1270.0,16.214,16.203,36.14496728]
[1673477971051,62.37,16.226,16.203,36.14496728]
[1673477971384,238.939,16.236,16.21,17.14]
[1673477971385,20.0,16.235,16.21,17.14]
[1673477971579,134.1542,16.235,16.22,17.28]
[1673477971787,46.21,16.234,16.211,46.28]
[1673477971987,15.0,16.233,16.21,86.38]
[1673477972199,62.37,16.231,16.211,17.0]
[1673477972428,20.0,16.229,16.211,17.0]
[1673477972617,20.0,16.227,16.211,17.0]
[1673477972954,17.34,16.25,16.22,86.72]
[1673477973142,114.1542,16.242,16.23,17.16]
[1673477973355,20.0,16.243,16.23,17.16]
[1673477973568,46.19,16.242,16.23,17.16]
[1673477973890,20.0,16.241,16.23,17.16]
[1673477974107,46.2,16.24,16.23,17.16]
[1673477974414,46.2,16.24,16.231,17.0]
[1673477974634,20.0,16.243,16.231,17.0]
[1673477974635,66.19,16.243,16.231,17.0]
[1673477974824,20.0,16.243,16.231,17.0]
[1673477975466,20.0,16.243,16.231,119.81628978]
[1673477975784,20.0,16.243,16.231,68.20111092]
[1673477976529,20.0,16.244,16.232,19.14496728]
[1673477976710,20.0,16.244,16.233,17.0]
[1673477976920,20.0,16.244,16.23,86.45]
[1673477977133,46.19,16.243,16.231,17.0]
[1673477977354,20.0,16.242,16.231,17.0]
[1673477977780,1.92,16.241,16.23,86.45]
[1673477977992,46.19,16.241,16.23,86.45]
[1673477978310,20.0,16.242,16.23,86.45]
[1673477978512,20.0,16.242,16.231,17.0]
[1673477978932,20.0,16.242,16.23,86.45]
[1673477979245,48.11,16.241,16.23,17.24]
[1673477979458,20.0,16.24,16.23,17.24]
[1673477980290,48.12,16.239,16.23,17.24]
[1673477980620,20.0,16.238,16.23,17.24]
[1673477980817,20.0,16.236,16.23,17.24]
[1673477981466,20.0,16.234,16.23,17.24]
[1673477981663,20.0,16.234,16.224,47.12777759]
[1673477981876,20.0,16.232,16.22,17.38]
[1673477982078,20.0,16.23,16.22,17.38]
[1673477983230,20.0,16.228,16.22,17.38]
[1673477983566,20.0,16.226,16.22,17.38]
[1673477983776,20.0,16.226,16.213,46.27]
[1673477983966,20.0,16.226,16.21,17.28]
[1673477983967,68.16,16.225,16.21,17.28]
[1673477984295,20.0,16.224,16.21,17.28]
[1673477984514,47.2,16.223,16.21,17.28]
[1673477984700,20.96,16.222,16.21,17.28]
[1673477984910,47.21,16.221,16.21,17.28]
[1673477985243,20.96,16.22,16.21,17.28]
[1673477985456,46.26,16.219,16.21,17.28]
[1673477986072,20.0,16.218,16.21,17.28]
[1673477986493,46.26,16.219,16.21,17.28]
[1673477987987,20.0,16.22,16.21,17.28]
[1673477988201,46.26,16.219,16.21,17.28]
[1673477988392,20.0,16.218,16.21,17.28]
[1673477989148,46.26,16.217,16.21,17.28]
[1673477989876,20.0,16.216,16.202,46.3]
[1673477990404,20.0,16.216,16.201,46.31]
[1673477990614,0.96,16.215,16.201,46.31]
[1673477990815,0.96,16.214,16.201,46.31]
[1673477991225,47.23,16.213,16.2,17.38]
[1673477991436,20.0,16.212,16.2,17.38]
[1673477992712,1.92,16.211,16.2,17.38]
[1673477992923,20.0,16.209,16.2,17.38]
[1673477993116,1.92,16.208,16.192,46.33]
[1673477993326,48.21,16.208,16.194,19.14496728]
[1673477993537,20.0,16.207,16.195,46.32]
[1673477993752,20.0,16.207,16.194,19.14496728]
[1673477994602,20.0,16.206,16.191,46.34]
[1673477994814,20.0,16.206,16.187,46.35]
[1673477994815,18.92,16.205,16.187,46.35]
[1673477995014,46.3,16.204,16.184,19.14496728]
[1673477995223,21.92,16.203,16.185,46.35]
[1673477995432,46.3,16.202,16.185,46.35]
[1673477995648,20.0,16.207,16.191,20.0]
[1673477995977,46.28,16.211,16.192,63.33]
[1673477996286,46.29,16.208,16.192,82.47496728]
[1673477996482,46.29,16.208,16.193,19.14496728]
[1673477996692,46.29,16.208,16.194,63.33]
[1673477996908,46.29,16.208,16.194,46.33]
[1673477997114,46.29,16.208,16.191,46.34]
[1673477997321,20.0,16.21,16.194,19.14496728]
[1673477997654,46.29,16.208,16.191,46.34]
[1673477998064,66.28,16.209,16.191,65.48496728]
[1673477998284,66.28,16.209,16.192,19.14496728]
[1673477998494,66.28,16.209,16.193,46.33]
[1673477999033,1.92,16.208,16.193,19.14496728]
[1673477999262,20.0,16.206,16.194,46.33]
[1673477999557,20.0,16.206,16.193,19.14496728]
[1673477999869,20.0,16.206,16.194,17.0]
[1673478000277,20.0,16.206,16.194,60.83]
[1673478000804,20.0,16.206,16.194,14.5]
[1673478001217,20.0,16.207,16.195,46.32]
[1673478001431,20.0,16.209,16.193,46.33]
[1673478001644,20.0,16.209,16.194,1.92]
[1673478001868,20.0,16.21,16.195,46.32]
[1673478002186,20.0,16.21,16.194,46.33]
[1673478002375,20.0,16.21,16.195,17.0]
[1673478002580,20.0,16.21,16.196,46.32]
[1673478002791,20.0,16.21,16.193,46.33]
[1673478003126,20.0,16.21,16.192,46.33]
[1673478003533,66.28,16.21,16.192,46.33]
[1673478003852,1.92,16.209,16.192,46.33]
[1673478004057,46.29,16.208,16.191,46.34]
[1673478004274,21.92,16.207,16.191,46.34]
[1673478005320,68.21,16.207,16.191,46.34]
[1673478005742,68.21,16.207,16.192,17.0]
[1673478005955,68.21,16.207,16.193,46.33]
[1673478006389,137.3854,16.213,16.194,17.0]
[1673478006578,137.3854,16.213,16.195,46.32]
[1673478006794,137.3854,16.213,16.196,17.0]
[1673478007114,137.3854,16.213,16.197,46.32]
[1673478007337,183.6554,16.213,16.197,46.32]
[1673478008260,183.6554,16.213,16.198,17.0]
[1673478009204,183.6554,16.213,16.195,46.32]
[1673478009429,183.6554,16.213,16.196,17.0]
[1673478009645,183.6554,16.213,16.195,63.32]
[1673478010385,183.6554,16.213,16.195,46.32]
[1673478010601,183.6554,16.213,16.193,46.33]
[1673478011239,21.92,16.212,16.192,46.33]
[1673478011425,46.28,16.211,16.192,46.33]
[1673478011635,1.92,16.21,16.192,46.33]
[1673478011959,46.28,16.209,16.192,46.33]
[1673478012162,46.28,16.209,16.193,39.14496728]
[1673478012364,46.28,16.211,16.194,63.33]
[1673478012578,20.0,16.21,16.194,63.33]
[1673478013323,20.0,16.21,16.194,46.33]
[1673478013654,20.0,16.208,16.194,46.33]
[1673478014052,20.0,16.208,16.193,46.33]
[1673478014789,1.92,16.207,16.194,17.0]
[1673478015008,1.92,16.207,16.195,46.32]
[1673478015220,1.92,16.207,16.192,46.33]
[1673478015428,1.92,16.207,16.191,160.0779]
[1673478015635,48.21,16.207,16.191,160.0779]
[1673478016054,48.21,16.207,16.192,20.0]
[1673478016055,46.29,16.207,16.192,20.0]
[1673478016266,20.0,16.208,16.193,46.33]
[1673478016483,46.28,16.211,16.193,65.47496728]
[1673478016677,163.6554,16.213,16.193,65.47496728]
[1673478016890,163.6554,16.213,16.194,36.14496728]
[1673478017102,20.0,16.212,16.195,46.32]
[1673478017311,20.0,16.212,16.196,17.0]
[1673478017529,20.0,16.212,16.197,46.32]
[1673478017743,20.0,16.212,16.198,17.0]
[1673478018142,20.0,16.212,16.196,46.32]
[1673478018359,20.0,16.21,16.193,19.14496728]
[1673478018572,46.28,16.209,16.194,46.33]
[1673478018892,46.28,16.211,16.194,65.47496728]
[1673478019104,1.92,16.21,16.195,20.0]
[1673478019428,46.28,16.211,16.196,63.32]
[1673478019618,66.28,16.212,16.196,46.32]
[1673478019832,1.92,16.211,16.197,20.0]
[1673478020262,46.28,16.212,16.2,25.98]
[1673478020472,46.26,16.219,16.201,46.31]
[1673478020710,20.0,16.22,16.201,46.31]
[1673478020906,46.26,16.219,16.202,17.0]
[1673478021087,46.26,16.219,16.203,46.3]
[1673478021294,46.26,16.219,16.204,17.0]
[1673478021515,20.0,16.218,16.203,46.3]
[1673478021721,46.26,16.217,16.203,46.3]
[1673478021935,46.26,16.217,16.201,65.45496728]
[1673478022161,46.26,16.217,16.202,17.0]
[1673478022361,46.26,16.217,16.203,46.3]
[1673478022557,46.26,16.218,16.203,46.3]
[1673478022772,20.0,16.217,16.203,46.3]
[1673478022981,20.0,16.215,16.201,46.31]
[1673478023221,66.27,16.214,16.2,25.75]
[1673478023442,21.92,16.213,16.2,25.75]
[1673478023625,46.28,16.212,16.2,25.75]
[1673478023964,1.92,16.211,16.201,46.31]
[1673478024276,0.96,16.211,16.201,46.31]
[1673478025304,0.96,16.211,16.2,25.75]
[1673478025838,131.2667,16.214,16.201,46.31]
[1673478026159,46.26,16.217,16.202,20.0]
[1673478026367,46.26,16.219,16.203,46.3]
[1673478026787,46.26,16.219,16.203,65.44496728]
[1673478026997,20.0,16.22,16.203,46.3]
[1673478027220,20.0,16.22,16.203,65.44496728]
[1673478027422,20.0,16.22,16.204,37.0]
[1673478027617,20.0,16.22,16.205,46.3]
[1673478028253,20.0,16.22,16.203,46.3]
[1673478029327,1.92,16.219,16.203,46.3]
[1673478029848,18.92,16.219,16.203,46.3]
[1673478030047,65.18,16.219,16.201,66.31]
[1673478030671,20.0,16.218,16.201,66.31]
[1673478030996,46.26,16.219,16.202,19.14496728]
[1673478031196,66.25,16.22,16.204,20.0]
[1673478031407,66.25,16.22,16.205,46.3]
[1673478032487,66.25,16.22,16.202,19.14496728]
[1673478032488,1.92,16.219,16.204,46.3]
[1673478032664,1.92,16.219,16.203,46.3]
[1673478033085,1.92,16.219,16.202,46.3]
[1673478033930,1.92,16.219,16.203,17.0]
[1673478034246,66.25,16.22,16.204,46.3]
[1673478034453,20.0,16.22,16.204,65.44496728]
[1673478035623,1.92,16.219,16.204,65.44496728]
[1673478036348,18.92,16.219,16.204,46.3]
[1673478036564,18.92,16.219,16.203,20.0]
[1673478036770,18.92,16.219,16.204,46.3]
[1673478036982,18.92,16.219,16.201,46.31]
[1673478038253,1.92,16.219,16.201,46.31]
[1673478038782,18.92,16.219,16.201,46.31]
[1673478039417,1.92,16.219,16.201,46.31]
[1673478040060,20.0,16.22,16.201,46.31]
[1673478040378,17.0,16.219,16.201,46.31]
[1673478040691,20.0,16.22,16.201,46.31]
[1673478040900,17.0,16.219,16.201,46.31]
[1673478041221,20.0,16.22,16.201,46.31]
[1673478041222,40.57333141,16.218,16.201,46.31]
[1673478041426,20.0,16.22,16.202,36.14496728]
[1673478041639,20.0,16.22,16.203,46.3]
[1673478042269,0.96,16.219,16.203,46.3]
[1673478042461,1.92,16.219,16.203,46.3]
[1673478042990,18.92,16.219,16.203,46.3]
[1673478043201,20.0,16.218,16.201,65.45496728]
[1673478043526,1.92,16.217,16.202,19.14496728]
[1673478043738,0.96,16.217,16.203,46.3]
[1673478044878,0.96,16.216,16.203,46.3]
[1673478045090,20.0,16.218,16.203,46.3]
[1673478045312,20.0,16.218,16.208,14.0]
[1673478045947,20.0,16.22,16.208,14.0]
[1673478046368,0.96,16.219,16.208,14.0]
[1673478047102,20.0,16.22,16.208,14.0]
[1673478048576,1.92,16.219,16.208,14.0]
[1673478049200,20.0,16.22,16.208,14.0]
[1673478049513,20.0,16.22,16.209,46.28]
[1673478050365,1.92,16.219,16.208,14.0]
[1673478051303,20.0,16.22,16.208,14.0]
[1673478052238,111.2667,16.221,16.21,25.88]
[1673478052456,108.6,16.228,16.211,46.28]
[1673478052777,62.37,16.228,16.211,46.28]
[1673478052991,20.0,16.226,16.211,46.28]
[1673478054350,1.92,16.225,16.212,17.0]
[1673478054579,20.0,16.227,16.213,46.27]
[1673478054780,20.0,16.227,16.214,17.0]
[1673478055096,20.0,16.229,16.22,25.86]
[1673478057301,1.92,16.228,16.22,25.86]
[1673478062482,86.86686801,16.245,16.222,20.0]
[1673478062697,124.2579,16.244,16.23,129.9]
[1673478062905,124.2579,16.244,16.231,46.22]
[1673478063848,20.0,16.243,16.231,46.22]
[1673478064064,109.2579,16.244,16.231,46.22]
[1673478064467,26.73606801,16.245,16.232,20.0]
[1673478064673,26.73606801,16.245,16.24,25.88]
[1673478066787,26.73606801,16.245,16.24,129.8]
[1673478068058,26.73606801,16.245,16.241,46.19]
[1673478068461,6.801e-05,16.245,16.242,20.0]
[1673478068693,6.801e-05,16.245,16.243,46.19]
[1673478069001,6.801e-05,16.245,16.243,65.33496728]
[1673478069194,6.801e-05,16.245,16.243,46.19]
[1673478070355,6.801e-05,16.245,16.244,17.0]
[1673478070562,6.801e-05,16.245,16.244,83.19]
[1673478070765,6.801e-05,16.245,16.244,102.33496728]
[1673478072659,6.801e-05,16.245,16.244,104.25496728]
[1673478072976,6.801e-05,16.245,16.244,152.3996182]
[1673478073184,6.801e-05,16.245,16.244,104.25496728]
[1673478073402,6.801e-05,16.245,16.244,150.33295153]
[1673478073609,6.801e-05,16.245,16.244,170.33295153]
[1673478073819,6.801e-05,16.245,16.244,214.16816946]
[1673478074150,6.801e-05,16.245,16.244,219.83363946]
[1673478074766,6.801e-05,16.245,16.244,155.99842153]
[1673478075101,6.801e-05,16.245,16.244,148.41295153]
[1673478075298,6.801e-05,16.245,16.244,150.33295153]
[1673478075502,6.801e-05,16.245,16.244,194.16903613]
[1673478075711,6.801e-05,16.245,16.244,199.83450613]
[1673478076458,6.801e-05,16.245,16.244,233.6765734]
[1673478076678,6.801e-05,16.245,16.244,219.83450613]
[1673478078034,6.801e-05,16.245,16.244,217.91450613]
[1673478078254,6.801e-05,16.245,16.244,200.91450613]
[1673478078862,6.801e-05,16.245,16.244,246.8055193]
[1673478079073,6.801e-05,16.245,16.244,280.64758657]
[1673478079713,6.801e-05,16.245,16.244,299.56758657]
[1673478080876,6.801e-05,16.245,16.244,402.06138081]
[1673478082338,6.801e-05,16.245,16.244,383.14138081]
[1673478083608,6.801e-05,16.245,16.244,402.06138081]
[1673478083823,46.09,16.279,16.246,100.24262815]
[1673478084032,46.06,16.287,16.27,130.11]
[1673478084341,46.06,16.287,16.28,25.98]
[1673478084957,46.06,16.288,16.28,129.9]
[1673478085164,46.06,16.288,16.281,19.14496728]
[1673478085388,46.06,16.288,16.28,25.75]
[1673478085815,20.0,16.289,16.28,129.67]
[1673478085816,66.06,16.289,16.28,129.67]
[1673478086009,44.578362,16.29,16.28,129.67]
[1673478086010,24.578362,16.29,16.282,20.0]
[1673478086226,24.578362,16.29,16.281,36.14496728]
[1673478086533,24.578362,16.29,16.282,19.14496728]
[1673478086743,24.578362,16.29,16.283,17.0]
[1673478086967,24.578362,16.29,16.282,19.14496728]
[1673478087188,24.578362,16.29,16.283,19.14496728]
[1673478087376,24.578362,16.29,16.284,17.0]
[1673478087581,24.578362,16.29,16.284,66.88241692]
[1673478087805,24.578362,16.29,16.285,19.14496728]
[1673478088014,20.0,16.289,16.28,129.67]
[1673478088214,66.06,16.289,16.28,25.75]
[1673478089174,66.06,16.289,16.281,19.14496728]
[1673478089604,66.06,16.289,16.28,25.75]
[1673478090324,21.92,16.288,16.27,129.96]
[1673478090537,66.06,16.287,16.27,149.10496728]
[1673478090749,20.0,16.286,16.271,20.0]
[1673478090960,20.0,16.288,16.28,25.88]
[1673478090961,46.07,16.285,16.28,25.88]
[1673478091152,46.06,16.287,16.28,25.88]
[1673478091362,46.06,16.287,16.28,129.9]
[1673478091574,24.578362,16.29,16.281,20.0]
[1673478091784,24.578362,16.29,16.281,142.7463461]
[1673478092004,24.578362,16.29,16.282,124.38622632]
[1673478092218,24.578362,16.29,16.283,20.0]
[1673478092419,24.578362,16.29,16.284,46.07]
[1673478092628,24.578362,16.29,16.286,20.0]
[1673478092852,24.578362,16.29,16.287,84.98]
[1673478093065,24.578362,16.29,16.287,130.12204548]
[1673478093272,24.578362,16.29,16.288,61.10259237]
[1673478093485,24.578362,16.29,16.288,80.24755965]
[1673478093683,24.578362,16.29,16.289,36.14496728]
[1673478093896,0.008362,16.29,16.289,150.77701259]
[1673478094107,250.6085325,16.292,16.289,151.73701259]
[1673478094314,46.01,16.306,16.292,119.47476583]
[1673478094523,46.0,16.308,16.3,129.9]
[1673478094738,46.0,16.308,16.3,129.88]
[1673478094948,46.0,16.308,16.301,117.12818686]
[1673478095163,20.0,16.312,16.302,17.0]
[1673478095378,20.0,16.312,16.302,136.27315414]
[1673478095585,46.0,16.311,16.303,75.7125769]
[1673478095803,20.0,16.31,16.303,75.7125769]
[1673478096208,66.0,16.311,16.303,75.7125769]
[1673478096426,66.0,16.311,16.3,25.73]
[1673478096626,20.0,16.31,16.3,25.73]
[1673478097162,20.0,16.308,16.3,25.73]
[1673478097567,46.01,16.307,16.294,54.49109668]
[1673478097796,20.96,16.306,16.294,54.49109668]
[1673478098002,20.0,16.306,16.294,54.49109668]
[1673478098209,20.0,16.306,16.291,19.14496728]
[1673478098210,46.01,16.305,16.295,19.14496728]
[1673478098420,66.01,16.306,16.295,19.14496728]
[1673478098634,66.01,16.306,16.291,100.54109668]
[1673478098836,466.0161692,16.307,16.3,23.72]
[1673478099269,20.0,16.306,16.301,86.28030973]
[1673478099691,20.0,16.306,16.302,19.14496728]
[1673478099907,20.0,16.305,16.301,86.28030973]
[1673478100090,466.0161692,16.306,16.301,86.28030973]
[1673478100525,20.0,16.305,16.301,105.42527701]
[1673478100738,20.0,16.305,16.301,55.79976335]
[1673478100946,20.0,16.305,16.293,46.05]
[1673478101152,20.0,16.305,16.294,55.79976335]
[1673478101560,66.01,16.305,16.294,55.79976335]
[1673478101893,1270.0,16.304,16.29,43.03496728]
[1673478102113,48.76837217,16.303,16.29,23.89]
[1673478102422,20.96,16.302,16.29,23.89]
[1673478102628,67.84066121,16.301,16.289,0.00496728]
[1673478102946,67.84066121,16.301,16.27,119.85]
[1673478102947,274.5815879,16.3,16.27,119.85]
[1673478103143,20.0,16.298,16.27,119.56]
[1673478103353,189.6,16.296,16.27,23.77]
[1673478103684,68.27071691,16.295,16.268,19.14496728]
[1673478103874,2.30136894,16.293,16.261,46.14]
[1673478104084,22.39620254,16.291,16.27,23.94]
[1673478104294,65.44620254,16.29,16.27,23.94]
[1673478104506,1.92,16.289,16.27,23.94]
[1673478104709,46.06,16.288,16.27,23.94]
[1673478104926,20.0,16.286,16.27,23.94]
[1673478105137,66.07,16.285,16.27,23.94]
[1673478105363,21.92,16.284,16.27,23.94]
[1673478105569,46.07,16.283,16.27,23.94]
[1673478105886,20.0,16.282,16.27,23.94]
[1673478106098,46.08,16.281,16.27,23.94]
[1673478106307,1.92,16.28,16.27,23.94]
[1673478106627,46.09,16.279,16.26,119.5]
[1673478106840,18.92,16.278,16.26,23.74]
[1673478107043,20.0,16.276,16.26,23.74]
[1673478107356,46.1,16.275,16.26,119.56]
[1673478107756,46.1,16.275,16.259,32.92475498]
[1673478107970,249.2440533,16.275,16.261,19.14496728]
[1673478108296,20.0,16.274,16.261,19.14496728]
[1673478108500,46.1,16.273,16.261,19.14496728]
[1673478109142,203.1440533,16.275,16.262,79.80494537]
[1673478109354,203.1440533,16.275,16.263,46.13]
[1673478109669,203.1440533,16.275,16.264,19.14496728]
[1673478109984,203.1440533,16.275,16.265,46.94845491]
[1673478110203,203.1440533,16.275,16.266,63.12]
[1673478110381,203.1440533,16.275,16.266,178.18124598]
[1673478110813,203.1440533,16.275,16.267,0.96]
[1673478111135,203.1440533,16.275,16.266,178.18124598]
[1673478111356,203.1440533,16.275,16.267,1.92]
[1673478111573,203.1440533,16.275,16.266,178.18124598]
[1673478111773,203.1440533,16.275,16.266,132.06124598]
[1673478112291,20.0,16.274,16.266,115.06124598]
[1673478112826,20.0,16.272,16.266,115.06124598]
[1673478113010,20.0,16.272,16.266,28.76531149]
[1673478113220,47.78717199,16.271,16.26,34.92675498]
[1673478113678,1.91273904,16.269,16.26,34.92675498]
[1673478113995,203.1440533,16.269,16.261,20.0]
[1673478114189,203.1440533,16.269,16.262,66.13]
[1673478114826,203.1440533,16.269,16.263,17.0]
[1673478115032,203.1440533,16.269,16.264,66.13]
[1673478115234,203.1440533,16.269,16.265,17.0]
[1673478115440,203.1440533,16.269,16.266,46.12]
[1673478115661,20.0,16.268,16.261,46.14]
[1673478115872,223.1440533,16.268,16.26,59.10675498]
[1673478117436,203.1440533,16.268,16.26,59.10675498]
[1673478117879,203.1440533,16.268,16.261,20.0]
[1673478118087,203.1440533,16.268,16.262,46.13]
[1673478118307,203.1440533,16.268,16.263,17.0]
[1673478118705,203.1440533,16.268,16.264,46.13]
[1673478119457,203.1440533,16.268,16.265,17.0]
[1673478119979,203.1440533,16.268,16.266,1.92]
[1673478120307,203.1440533,16.268,16.267,46.12]
[1673478120610,203.1440533,16.268,16.267,83.12]
[1673478121012,271.23465066,16.303,16.267,83.12]
[1673478121013,46.07,16.285,16.268,76.41]
[1673478121225,154.4824,16.287,16.269,85.03]
[1673478121450,46.03,16.297,16.269,85.03]
[1673478121647,108.4224,16.297,16.269,85.03]
[1673478121850,108.4224,16.297,16.27,20.0]
[1673478122063,5.73484,16.3,16.28,120.17]
[1673478122283,5.73484,16.3,16.281,67.04]
[1673478122495,5.73484,16.3,16.281,85.0]
[1673478122921,5.73484,16.3,16.282,20.0]
[1673478123137,5.73484,16.3,16.283,84.99]
[1673478123331,5.73484,16.3,16.291,1.11873803]
[1673478123542,5.73484,16.3,16.292,46.05]
[1673478123757,5.73484,16.3,16.293,0.96]
[1673478123968,5.73484,16.3,16.291,46.05]
[1673478124176,5.73484,16.3,16.292,17.0]
[1673478124399,5.73484,16.3,16.293,46.05]
[1673478124598,5.73484,16.3,16.294,17.0]
[1673478124809,5.73484,16.3,16.293,46.05]
[1673478125348,5.73484,16.3,16.291,46.05]
[1673478125756,5.73484,16.3,16.292,17.0]
[1673478125966,5.73484,16.3,16.29,120.41]
[1673478126181,5.73484,16.3,16.291,17.0]
[1673478126799,5.73484,16.3,16.291,63.05]
[1673478127013,5.73484,16.3,16.291,17.0]
[1673478127227,5.73484,16.3,16.29,120.41]
[1673478127568,5.73484,16.3,16.29,24.25]
[1673478127966,5.73484,16.3,16.29,120.41]
[1673478128174,5.73484,16.3,16.291,46.05]
[1673478128386,5.73484,16.3,16.292,20.0]
[1673478128595,5.73484,16.3,16.293,46.05]
[1673478129018,5.73484,16.3,16.294,17.0]
[1673478129353,5.73484,16.3,16.291,46.05]
[1673478129541,5.73484,16.3,16.292,18.92]
[1673478129750,5.73484,16.3,16.294,20.0]